[Event "Titled Tuesday Blitz December 06 Early 2022"]
[White "Czopor, Maciej"]
[Black "Kuznetsov, Mikhail"]
[WhiteFideId "21805431"]
[BlackFideId "4117190"]
[WhiteElo "2628"]
[BlackElo "2472"]
[Result "1/2-1/2"]
[Round "07"]
[TimeControl "180+1"]
[Date "2022.12.07"]
[WhiteClock "0:00:32"]
[BlackClock "0:00:21"]

1. c4 {[%clk 0:03:00]}  Nf6 {[%clk 0:02:57]} 2. Nc3 {[%clk 0:03:01]}  d5 {[%clk 0:02:56]} 3. cxd5 {[%clk 0:02:59]}  Nxd5 {[%clk 0:02:57]} 4. Nf3 {[%clk 0:02:59]}  g6 {[%clk 0:02:57]} 5. g3 {[%clk 0:02:59]}  Bg7 {[%clk 0:02:57]} 6. Bg2 {[%clk 0:03:00]}  O-O {[%clk 0:02:57]} 7. O-O {[%clk 0:03:00]}  Nb6 {[%clk 0:02:57]} 8. d4 {[%clk 0:02:54]}  Nc6 {[%clk 0:02:56]} 9. e3 {[%clk 0:02:27]}  e5 {[%clk 0:02:55]} 10. dxe5 {[%clk 0:02:15]}  Qxd1 {[%clk 0:02:49]} 11. Rxd1 {[%clk 0:02:14]}  Nxe5 {[%clk 0:02:49]} 12. Nxe5 {[%clk 0:01:59]}  Bxe5 {[%clk 0:02:50]} 13. Nb5 {[%clk 0:02:00]}  c6 {[%clk 0:02:35]} 14. Nd4 {[%clk 0:01:46]}  Rd8 {[%clk 0:02:34]} 15. Bd2 {[%clk 0:01:42]}  Bxd4 {[%clk 0:02:18]} 16. exd4 {[%clk 0:01:43]}  Rxd4 {[%clk 0:02:18]} 17. Bc3 {[%clk 0:01:43]}  Rxd1+ {[%clk 0:02:18]} 18. Rxd1 {[%clk 0:01:44]}  Bg4 {[%clk 0:02:18]} 19. Rd6 {[%clk 0:01:38]}  Re8 {[%clk 0:02:14]} 20. h3 {[%clk 0:01:37]}  Be6 {[%clk 0:02:12]} 21. b3 {[%clk 0:01:29]}  Nd5 {[%clk 0:01:51]} 22. Bd4 {[%clk 0:01:29]}  a6 {[%clk 0:01:48]} 23. Kh2 {[%clk 0:01:20]}  Nb4 {[%clk 0:01:44]} 24. a3 {[%clk 0:01:10]}  Nc2 {[%clk 0:01:37]} 25. Bc5 {[%clk 0:01:06]}  Bxb3 {[%clk 0:01:16]} 26. Rd7 {[%clk 0:01:06]}  Bd5 {[%clk 0:01:03]} 27. Rxb7 {[%clk 0:00:51]}  Bxg2 {[%clk 0:00:51]} 28. Kxg2 {[%clk 0:00:52]}  h5 {[%clk 0:00:43]} 29. Rb6 {[%clk 0:00:49]}  g5 {[%clk 0:00:40]} 30. g4 {[%clk 0:00:47]}  Ne1+ {[%clk 0:00:29]} 31. Kf1 {[%clk 0:00:44]}  hxg4 {[%clk 0:00:19]} 32. hxg4 {[%clk 0:00:44]}  Nd3 {[%clk 0:00:18]} 33. Be3 {[%clk 0:00:44]}  Ne5 {[%clk 0:00:11]} 34. Rxa6 {[%clk 0:00:43]}  Nxg4 {[%clk 0:00:10]} 35. Bxg5 {[%clk 0:00:43]}  Rc8 {[%clk 0:00:09]} 36. Ke2 {[%clk 0:00:38]}  c5 {[%clk 0:00:09]} 37. f3 {[%clk 0:00:23]}  Re8+ {[%clk 0:00:08]} 38. Kd2 {[%clk 0:00:16]}  Ne5 {[%clk 0:00:09]} 39. f4 {[%clk 0:00:10]}  Nf3+ {[%clk 0:00:08]} 40. Kd3 {[%clk 0:00:10]}  Nxg5 {[%clk 0:00:04]} 41. fxg5 {[%clk 0:00:11]}  Re5 {[%clk 0:00:04]} 42. g6 {[%clk 0:00:10]}  fxg6 {[%clk 0:00:03]} 43. Rxg6+ {[%clk 0:00:11]}  Kf8 {[%clk 0:00:04]} 44. Rc6 {[%clk 0:00:12]}  Ke7 {[%clk 0:00:04]} 45. Kc4 {[%clk 0:00:12]}  Kd7 {[%clk 0:00:04]} 46. Rxc5 {[%clk 0:00:13]}  Rxc5+ {[%clk 0:00:04]} 47. Kxc5 {[%clk 0:00:14]}  Kc7 {[%clk 0:00:05]} 48. a4 {[%clk 0:00:13]}  Kb8 {[%clk 0:00:05]} 49. Kb5 {[%clk 0:00:14]}  Ka8 {[%clk 0:00:06]} 50. Ka5 {[%clk 0:00:15]}  Kb8 {[%clk 0:00:07]} 51. Kb4 {[%clk 0:00:15]}  Ka8 {[%clk 0:00:06]} 52. Kb3 {[%clk 0:00:16]}  Kb8 {[%clk 0:00:07]} 53. Kb2 {[%clk 0:00:17]}  Ka8 {[%clk 0:00:08]} 54. Ka3 {[%clk 0:00:18]}  Kb8 {[%clk 0:00:09]} 55. Ka2 {[%clk 0:00:19]}  Ka8 {[%clk 0:00:10]} 56. Ka1 {[%clk 0:00:20]}  Kb8 {[%clk 0:00:11]} 57. Kb1 {[%clk 0:00:21]}  Ka8 {[%clk 0:00:12]} 58. Kb2 {[%clk 0:00:22]}  Kb8 {[%clk 0:00:13]} 59. Ka2 {[%clk 0:00:23]}  Ka8 {[%clk 0:00:14]} 60. Ka3 {[%clk 0:00:24]}  Kb8 {[%clk 0:00:15]} 61. Kb3 {[%clk 0:00:24]}  Ka8 {[%clk 0:00:15]} 62. Kb4 {[%clk 0:00:25]}  Kb8 {[%clk 0:00:16]} 63. Kc4 {[%clk 0:00:26]}  Ka8 {[%clk 0:00:17]} 64. Kc3 {[%clk 0:00:27]}  Kb8 {[%clk 0:00:18]} 65. Kc2 {[%clk 0:00:28]}  Ka8 {[%clk 0:00:19]} 66. Kc1 {[%clk 0:00:29]}  Kb8 {[%clk 0:00:20]} 67. Kb1 {[%clk 0:00:30]}  Ka8 {[%clk 0:00:21]} 68. Ka1 {[%clk 0:00:31]}  Kb8 {[%clk 0:00:21]} 69. Ka2 {[%clk 0:00:32]} 1/2-1/2


[Site "https://www.chess.com"]

[Event "Titled Tuesday Blitz December 06 Early 2022"]
[White "Daneshvar, Bardiya"]
[Black "Volkov, Maksim"]
[WhiteFideId "12576468"]
[BlackFideId "54123070"]
[WhiteElo "2429"]
[BlackElo "2257"]
[Result "1-0"]
[Round "07"]
[TimeControl "180+1"]
[Date "2022.12.06"]
[WhiteClock "0:01:08"]
[BlackClock "0:00:04"]

1. b3 {[%clk 0:03:00]}  e5 {[%clk 0:02:59]} 2. Bb2 {[%clk 0:03:01]}  Nc6 {[%clk 0:02:58]} 3. e3 {[%clk 0:03:02]}  Nf6 {[%clk 0:02:58]} 4. Bb5 {[%clk 0:03:02]}  e4 {[%clk 0:02:54]} 5. Ne2 {[%clk 0:03:02]}  a6 {[%clk 0:02:44]} 6. Bxc6 {[%clk 0:03:02]}  dxc6 {[%clk 0:02:45]} 7. Ng3 {[%clk 0:03:02]}  Bd6 {[%clk 0:02:42]} 8. Bxf6 {[%clk 0:03:01]}  Qxf6 {[%clk 0:02:41]} 9. Nc3 {[%clk 0:03:01]}  Bxg3 {[%clk 0:02:34]} 10. hxg3 {[%clk 0:03:02]}  Bf5 {[%clk 0:02:32]} 11. Qh5 {[%clk 0:02:53]}  Bg6 {[%clk 0:02:24]} 12. Qh4 {[%clk 0:02:52]}  Qe5 {[%clk 0:02:21]} 13. Qf4 {[%clk 0:02:52]}  Qe7 {[%clk 0:02:17]} 14. O-O-O {[%clk 0:02:51]}  O-O-O {[%clk 0:02:13]} 15. Kb2 {[%clk 0:02:50]}  Kb8 {[%clk 0:02:08]} 16. f3 {[%clk 0:02:49]}  exf3 {[%clk 0:02:06]} 17. gxf3 {[%clk 0:02:50]}  Rhe8 {[%clk 0:02:05]} 18. e4 {[%clk 0:02:49]}  a5 {[%clk 0:01:59]} 19. d4 {[%clk 0:02:47]}  f6 {[%clk 0:01:53]} 20. a3 {[%clk 0:02:45]}  Rd7 {[%clk 0:01:50]} 21. g4 {[%clk 0:02:44]}  Red8 {[%clk 0:01:49]} 22. Ne2 {[%clk 0:02:44]}  Qe6 {[%clk 0:01:39]} 23. Qe3 {[%clk 0:02:43]}  c5 {[%clk 0:01:26]} 24. d5 {[%clk 0:02:38]}  Qb6 {[%clk 0:01:22]} 25. Nf4 {[%clk 0:02:35]}  Re8 {[%clk 0:01:14]} 26. Qc3 {[%clk 0:02:32]}  a4 {[%clk 0:01:08]} 27. Nd3 {[%clk 0:02:31]}  axb3 {[%clk 0:01:03]} 28. cxb3 {[%clk 0:02:32]}  c4 {[%clk 0:01:02]} 29. Qxc4 {[%clk 0:02:31]}  Qe3 {[%clk 0:01:02]} 30. Nc5 {[%clk 0:02:28]}  Rd6 {[%clk 0:01:02]} 31. Qc3 {[%clk 0:02:28]}  Qxc3+ {[%clk 0:00:40]} 32. Kxc3 {[%clk 0:02:29]}  c6 {[%clk 0:00:41]} 33. Ne6 {[%clk 0:01:57]}  cxd5 {[%clk 0:00:40]} 34. exd5 {[%clk 0:01:58]}  Bf7 {[%clk 0:00:36]} 35. Nxg7 {[%clk 0:01:55]}  Re3+ {[%clk 0:00:35]} 36. Rd3 {[%clk 0:01:54]}  Rxd3+ {[%clk 0:00:36]} 37. Kxd3 {[%clk 0:01:54]}  Bxd5 {[%clk 0:00:29]} 38. Ke3 {[%clk 0:01:52]}  Bxb3 {[%clk 0:00:28]} 39. Rxh7 {[%clk 0:01:51]}  Bc2 {[%clk 0:00:28]} 40. Rh8+ {[%clk 0:01:50]}  Ka7 {[%clk 0:00:28]} 41. Rf8 {[%clk 0:01:50]}  b5 {[%clk 0:00:23]} 42. Ne8 {[%clk 0:01:49]}  Rd3+ {[%clk 0:00:23]} 43. Ke2 {[%clk 0:01:48]}  Rxa3 {[%clk 0:00:22]} 44. Rxf6 {[%clk 0:01:49]}  b4 {[%clk 0:00:21]} 45. Nd6 {[%clk 0:01:47]}  Ra2 {[%clk 0:00:19]} 46. Nb5+ {[%clk 0:01:45]}  Kb7 {[%clk 0:00:17]} 47. Nd4 {[%clk 0:01:41]}  Ba4+ {[%clk 0:00:13]} 48. Kd3 {[%clk 0:01:41]}  b3 {[%clk 0:00:13]} 49. Rf7+ {[%clk 0:01:26]}  Kb6 {[%clk 0:00:12]} 50. Rf6+ {[%clk 0:01:26]}  Kb7 {[%clk 0:00:12]} 51. Nxb3 {[%clk 0:01:17]}  Bxb3 {[%clk 0:00:12]} 52. g5 {[%clk 0:01:18]}  Rg2 {[%clk 0:00:09]} 53. f4 {[%clk 0:01:18]}  Kc7 {[%clk 0:00:09]} 54. Ke4 {[%clk 0:01:18]}  Kd7 {[%clk 0:00:08]} 55. Ra6 {[%clk 0:01:17]}  Ke7 {[%clk 0:00:06]} 56. Ra7+ {[%clk 0:01:16]}  Kd6 {[%clk 0:00:07]} 57. Kf5 {[%clk 0:01:15]}  Bc2+ {[%clk 0:00:06]} 58. Kf6 {[%clk 0:01:14]}  Rf2 {[%clk 0:00:07]} 59. Ra6+ {[%clk 0:01:14]}  Kd5 {[%clk 0:00:06]} 60. Ra5+ {[%clk 0:01:13]}  Ke4 {[%clk 0:00:06]} 61. f5 {[%clk 0:01:12]}  Kf4 {[%clk 0:00:04]} 62. g6 {[%clk 0:01:11]}  Rg2 {[%clk 0:00:04]} 63. Ra2 {[%clk 0:01:08]} 1-0


[Site "https://www.chess.com"]

[Event "Titled Tuesday Blitz December 06 Early 2022"]
[White "Danielyan, Vahe"]
[Black "Rakhmatullaev, Almas"]
[WhiteFideId "13304828"]
[BlackFideId "14205793"]
[WhiteElo "2585"]
[BlackElo "2764"]
[Result "0-1"]
[Round "07"]
[TimeControl "180+1"]
[Date "2022.12.07"]
[WhiteClock "0:00:24"]
[BlackClock "0:00:36"]

1. e4 {[%clk 0:03:00]}  e5 {[%clk 0:03:00]} 2. Nf3 {[%clk 0:03:00]}  Nc6 {[%clk 0:03:00]} 3. Nc3 {[%clk 0:03:00]}  Nf6 {[%clk 0:02:59]} 4. Bb5 {[%clk 0:03:01]}  Nd4 {[%clk 0:02:57]} 5. O-O {[%clk 0:03:00]}  Nxb5 {[%clk 0:02:56]} 6. Nxb5 {[%clk 0:03:01]}  c6 {[%clk 0:02:56]} 7. Nc3 {[%clk 0:03:01]}  d6 {[%clk 0:02:57]} 8. d4 {[%clk 0:03:00]}  Qc7 {[%clk 0:02:56]} 9. h3 {[%clk 0:02:59]}  Be7 {[%clk 0:02:56]} 10. a4 {[%clk 0:02:59]}  O-O {[%clk 0:02:55]} 11. Bg5 {[%clk 0:03:00]}  h6 {[%clk 0:02:55]} 12. Bxf6 {[%clk 0:03:00]}  Bxf6 {[%clk 0:02:56]} 13. d5 {[%clk 0:03:01]}  Bd7 {[%clk 0:02:53]} 14. Qd3 {[%clk 0:02:59]}  c5 {[%clk 0:02:54]} 15. Nd2 {[%clk 0:02:59]}  b6 {[%clk 0:02:52]} 16. Nc4 {[%clk 0:02:59]}  a6 {[%clk 0:02:51]} 17. Ne3 {[%clk 0:02:58]}  Rfb8 {[%clk 0:02:43]} 18. Nf5 {[%clk 0:02:58]}  Bg5 {[%clk 0:02:33]} 19. h4 {[%clk 0:02:54]}  Bf6 {[%clk 0:02:23]} 20. Qg3 {[%clk 0:02:51]}  Kh7 {[%clk 0:02:14]} 21. Nd1 {[%clk 0:02:37]}  Bxf5 {[%clk 0:02:05]} 22. exf5 {[%clk 0:02:36]}  e4 {[%clk 0:02:06]} 23. Re1 {[%clk 0:02:29]}  Re8 {[%clk 0:02:06]} 24. Qg4 {[%clk 0:02:26]}  Qd7 {[%clk 0:01:54]} 25. c3 {[%clk 0:02:26]}  Re5 {[%clk 0:01:50]} 26. Ne3 {[%clk 0:02:25]}  Rb8 {[%clk 0:01:39]} 27. Red1 {[%clk 0:02:20]}  Re7 {[%clk 0:01:26]} 28. g3 {[%clk 0:02:16]}  Qb7 {[%clk 0:01:10]} 29. Re1 {[%clk 0:02:14]}  b5 {[%clk 0:01:09]} 30. axb5 {[%clk 0:02:14]}  axb5 {[%clk 0:01:10]} 31. Rad1 {[%clk 0:02:11]}  Ra8 {[%clk 0:01:08]} 32. Ng2 {[%clk 0:02:09]}  Ra2 {[%clk 0:01:06]} 33. Re2 {[%clk 0:02:05]}  b4 {[%clk 0:01:05]} 34. Rxe4 {[%clk 0:01:50]}  Rxe4 {[%clk 0:01:04]} 35. Qxe4 {[%clk 0:01:51]}  Rxb2 {[%clk 0:01:02]} 36. c4 {[%clk 0:01:34]}  b3 {[%clk 0:00:59]} 37. g4 {[%clk 0:01:34]}  Qe7 {[%clk 0:00:54]} 38. Qxe7 {[%clk 0:01:06]}  Bxe7 {[%clk 0:00:55]} 39. f4 {[%clk 0:00:51]}  Bf6 {[%clk 0:00:50]} 40. g5 {[%clk 0:00:43]}  Bd4+ {[%clk 0:00:49]} 41. Kh2 {[%clk 0:00:36]}  Rc2 {[%clk 0:00:46]} 42. h5 {[%clk 0:00:34]}  hxg5 {[%clk 0:00:45]} 43. fxg5 {[%clk 0:00:35]}  b2 {[%clk 0:00:42]} 44. g6+ {[%clk 0:00:33]}  fxg6 {[%clk 0:00:42]} 45. hxg6+ {[%clk 0:00:34]}  Kh6 {[%clk 0:00:42]} 46. Kg3 {[%clk 0:00:35]}  Rc1 {[%clk 0:00:40]} 47. f6 {[%clk 0:00:24]}  Rxd1 {[%clk 0:00:36]} 0-1


[Site "https://www.chess.com"]

[Event "Titled Tuesday Blitz December 06 Early 2022"]
[White "Dardha, Daniel"]
[Black "Paravyan, David"]
[WhiteFideId "240990"]
[BlackFideId "4194985"]
[WhiteElo "2528"]
[BlackElo "2551"]
[Result "1-0"]
[Round "07"]
[TimeControl "180+1"]
[Date "2022.12.06"]
[WhiteClock "0:00:36"]
[BlackClock "0:00:02"]

1. d4 {[%clk 0:03:00]}  Nf6 {[%clk 0:02:59]} 2. Bg5 {[%clk 0:03:00]}  d5 {[%clk 0:02:58]} 3. e3 {[%clk 0:02:58]}  c5 {[%clk 0:02:59]} 4. Bxf6 {[%clk 0:02:58]}  gxf6 {[%clk 0:03:00]} 5. dxc5 {[%clk 0:02:58]}  e6 {[%clk 0:02:59]} 6. Nc3 {[%clk 0:02:52]}  Bxc5 {[%clk 0:02:57]} 7. Nf3 {[%clk 0:02:53]}  Nc6 {[%clk 0:02:56]} 8. Bd3 {[%clk 0:02:53]}  h5 {[%clk 0:02:54]} 9. Ne2 {[%clk 0:02:52]}  Qb6 {[%clk 0:02:52]} 10. O-O {[%clk 0:02:50]}  h4 {[%clk 0:02:46]} 11. h3 {[%clk 0:02:48]}  e5 {[%clk 0:02:44]} 12. e4 {[%clk 0:02:44]}  Be6 {[%clk 0:02:29]} 13. exd5 {[%clk 0:02:39]}  Bxd5 {[%clk 0:02:29]} 14. Nc3 {[%clk 0:02:40]}  Be6 {[%clk 0:02:12]} 15. Qe2 {[%clk 0:02:25]}  O-O-O {[%clk 0:02:05]} 16. Be4 {[%clk 0:02:15]}  Nd4 {[%clk 0:01:59]} 17. Nxd4 {[%clk 0:02:14]}  Bxd4 {[%clk 0:02:00]} 18. Qf3 {[%clk 0:02:06]}  Kb8 {[%clk 0:01:45]} 19. Nd5 {[%clk 0:01:53]}  Bxd5 {[%clk 0:00:29]} 20. Bxd5 {[%clk 0:01:54]}  Rd7 {[%clk 0:00:29]} 21. c3 {[%clk 0:01:50]}  Bc5 {[%clk 0:00:30]} 22. b4 {[%clk 0:01:49]}  Be7 {[%clk 0:00:28]} 23. c4 {[%clk 0:01:34]}  Rhd8 {[%clk 0:00:16]} 24. a3 {[%clk 0:01:33]}  Qd4 {[%clk 0:00:10]} 25. Rab1 {[%clk 0:01:21]}  Qf4 {[%clk 0:00:10]} 26. Qxf4 {[%clk 0:01:04]}  exf4 {[%clk 0:00:11]} 27. Rfe1 {[%clk 0:01:04]}  Bd6 {[%clk 0:00:11]} 28. Kf1 {[%clk 0:01:04]}  Be5 {[%clk 0:00:11]} 29. a4 {[%clk 0:01:00]}  a6 {[%clk 0:00:10]} 30. a5 {[%clk 0:00:58]}  Ka7 {[%clk 0:00:10]} 31. Re4 {[%clk 0:00:56]}  Rc7 {[%clk 0:00:08]} 32. b5 {[%clk 0:00:54]}  axb5 {[%clk 0:00:08]} 33. Rxb5 {[%clk 0:00:54]}  Rd6 {[%clk 0:00:06]} 34. Re2 {[%clk 0:00:51]}  Ra6 {[%clk 0:00:05]} 35. Re1 {[%clk 0:00:50]}  Rd7 {[%clk 0:00:03]} 36. Reb1 {[%clk 0:00:50]}  b6 {[%clk 0:00:01]} 37. axb6+ {[%clk 0:00:45]}  Kb8 {[%clk 0:00:02]} 38. Bf3 {[%clk 0:00:41]}  Rd2 {[%clk 0:00:01]} 39. c5 {[%clk 0:00:39]}  Raa2 {[%clk 0:00:02]} 40. c6 {[%clk 0:00:40]}  Rxf2+ {[%clk 0:00:02]} 41. Kg1 {[%clk 0:00:40]}  Rfc2 {[%clk 0:00:01]} 42. c7+ {[%clk 0:00:38]}  Bxc7 {[%clk 0:00:01]} 43. bxc7+ {[%clk 0:00:38]}  Kxc7 {[%clk 0:00:02]} 44. Rb7+ {[%clk 0:00:39]}  Kd6 {[%clk 0:00:02]} 45. Rxf7 {[%clk 0:00:39]}  Ke5 {[%clk 0:00:03]} 46. Re1+ {[%clk 0:00:38]}  Kf5 {[%clk 0:00:03]} 47. Rg7 {[%clk 0:00:38]}  Re2 {[%clk 0:00:01]} 48. Bxe2 {[%clk 0:00:36]}  f3 {[%clk 0:00:01]} 49. Bd3+ {[%clk 0:00:36]}  Kf4 {[%clk 0:00:02]} 50. Rg4# {[%clk 0:00:36]} 1-0


[Site "https://www.chess.com"]

[Event "Titled Tuesday Blitz December 06 Early 2022"]
[White "De Souza, Cristiano Gomes"]
[Black "Ilkhomi, Jaloliddin"]
[WhiteFideId "2151758"]
[BlackFideId "14700948"]
[WhiteElo "2219"]
[BlackElo "2527"]
[Result "1/2-1/2"]
[Round "07"]
[TimeControl "180+1"]
[Date "2022.12.07"]
[WhiteClock "0:00:21"]
[BlackClock "0:00:30"]

1. d4 {[%clk 0:03:00]}  Nf6 {[%clk 0:02:59]} 2. c4 {[%clk 0:03:00]}  e6 {[%clk 0:02:59]} 3. Nf3 {[%clk 0:03:00]}  Bb4+ {[%clk 0:02:59]} 4. Bd2 {[%clk 0:03:00]}  a5 {[%clk 0:03:00]} 5. a3 {[%clk 0:03:00]}  Bxd2+ {[%clk 0:02:59]} 6. Qxd2 {[%clk 0:03:00]}  O-O {[%clk 0:03:00]} 7. Nc3 {[%clk 0:03:01]}  b6 {[%clk 0:03:00]} 8. g3 {[%clk 0:03:00]}  Bb7 {[%clk 0:03:00]} 9. Bg2 {[%clk 0:03:00]}  d6 {[%clk 0:03:00]} 10. O-O {[%clk 0:03:00]}  Nbd7 {[%clk 0:03:01]} 11. b4 {[%clk 0:03:00]}  Ne4 {[%clk 0:02:59]} 12. Nxe4 {[%clk 0:03:00]}  Bxe4 {[%clk 0:03:00]} 13. Rfc1 {[%clk 0:02:58]}  f5 {[%clk 0:02:58]} 14. Ne1 {[%clk 0:02:58]}  Bxg2 {[%clk 0:02:58]} 15. Nxg2 {[%clk 0:02:58]}  Qb8 {[%clk 0:02:59]} 16. Nf4 {[%clk 0:02:57]}  Re8 {[%clk 0:02:54]} 17. d5 {[%clk 0:02:53]}  e5 {[%clk 0:02:52]} 18. Ne6 {[%clk 0:02:51]}  Nf8 {[%clk 0:02:52]} 19. Nxf8 {[%clk 0:02:51]}  Rxf8 {[%clk 0:02:53]} 20. c5 {[%clk 0:02:50]}  axb4 {[%clk 0:02:50]} 21. axb4 {[%clk 0:02:50]}  Rxa1 {[%clk 0:02:50]} 22. Rxa1 {[%clk 0:02:50]}  bxc5 {[%clk 0:02:51]} 23. bxc5 {[%clk 0:02:50]}  dxc5 {[%clk 0:02:51]} 24. Qc3 {[%clk 0:02:44]}  Rd8 {[%clk 0:02:34]} 25. Qxe5 {[%clk 0:02:41]}  Qb3 {[%clk 0:02:34]} 26. Qe6+ {[%clk 0:02:30]}  Kh8 {[%clk 0:02:33]} 27. Ra7 {[%clk 0:02:16]}  h6 {[%clk 0:02:27]} 28. Rxc7 {[%clk 0:02:13]}  Qd1+ {[%clk 0:02:07]} 29. Kg2 {[%clk 0:02:04]}  Qxd5+ {[%clk 0:02:08]} 30. Qxd5 {[%clk 0:02:03]}  Rxd5 {[%clk 0:02:09]} 31. Kf3 {[%clk 0:01:59]}  g5 {[%clk 0:02:08]} 32. h3 {[%clk 0:01:59]}  Kg8 {[%clk 0:02:08]} 33. Ke3 {[%clk 0:01:59]}  Re5+ {[%clk 0:02:07]} 34. Kd3 {[%clk 0:01:59]}  Rd5+ {[%clk 0:02:07]} 35. Kc3 {[%clk 0:01:59]}  Re5 {[%clk 0:02:04]} 36. e3 {[%clk 0:01:59]}  Rd5 {[%clk 0:02:04]} 37. f3 {[%clk 0:01:57]}  Rd6 {[%clk 0:01:58]} 38. Rxc5 {[%clk 0:01:55]}  Rf6 {[%clk 0:01:55]} 39. Kd4 {[%clk 0:01:55]}  Kg7 {[%clk 0:01:56]} 40. Ke5 {[%clk 0:01:52]}  Rf8 {[%clk 0:01:56]} 41. Rc7+ {[%clk 0:01:50]}  Kg6 {[%clk 0:01:56]} 42. Rc6+ {[%clk 0:01:50]}  Kg7 {[%clk 0:01:57]} 43. Re6 {[%clk 0:01:47]}  h5 {[%clk 0:01:52]} 44. e4 {[%clk 0:01:44]}  fxe4 {[%clk 0:01:51]} 45. Kxe4 {[%clk 0:01:42]}  Ra8 {[%clk 0:01:49]} 46. Re7+ {[%clk 0:01:39]}  Kf6 {[%clk 0:01:49]} 47. Rh7 {[%clk 0:01:39]}  Ra4+ {[%clk 0:01:49]} 48. Ke3 {[%clk 0:01:39]}  h4 {[%clk 0:01:44]} 49. gxh4 {[%clk 0:01:36]}  gxh4 {[%clk 0:01:45]} 50. Rh5 {[%clk 0:01:14]}  Kg6 {[%clk 0:01:44]} 51. Rd5 {[%clk 0:01:12]}  Ra3+ {[%clk 0:01:41]} 52. Kf4 {[%clk 0:01:10]}  Ra4+ {[%clk 0:01:41]} 53. Ke5 {[%clk 0:01:08]}  Ra3 {[%clk 0:01:42]} 54. Rd6+ {[%clk 0:01:06]}  Kg5 {[%clk 0:01:37]} 55. Ke4 {[%clk 0:01:05]}  Ra4+ {[%clk 0:01:37]} 56. Ke3 {[%clk 0:01:04]}  Ra3+ {[%clk 0:01:37]} 57. Rd3 {[%clk 0:01:02]}  Ra1 {[%clk 0:01:35]} 58. Rd5+ {[%clk 0:00:54]}  Kg6 {[%clk 0:01:35]} 59. Rd4 {[%clk 0:00:54]}  Kg5 {[%clk 0:01:34]} 60. Rg4+ {[%clk 0:00:53]}  Kh5 {[%clk 0:01:34]} 61. Kf4 {[%clk 0:00:53]}  Rh1 {[%clk 0:01:28]} 62. Rg5+ {[%clk 0:00:51]}  Kh6 {[%clk 0:01:29]} 63. Rg8 {[%clk 0:00:40]}  Rxh3 {[%clk 0:01:26]} 64. Rh8+ {[%clk 0:00:37]}  Kg7 {[%clk 0:01:26]} 65. Rh5 {[%clk 0:00:36]}  Kg6 {[%clk 0:01:26]} 66. Rh8 {[%clk 0:00:36]}  Rh1 {[%clk 0:01:24]} 67. Kg4 {[%clk 0:00:36]}  Rg1+ {[%clk 0:01:25]} 68. Kf4 {[%clk 0:00:35]}  Rh1 {[%clk 0:01:24]} 69. Kg4 {[%clk 0:00:34]}  Rg1+ {[%clk 0:01:14]} 70. Kf4 {[%clk 0:00:26]}  Ra1 {[%clk 0:01:14]} 71. Rxh4 {[%clk 0:00:24]}  Ra4+ {[%clk 0:01:14]} 72. Kg3 {[%clk 0:00:24]}  Ra3 {[%clk 0:01:15]} 73. Rc4 {[%clk 0:00:21]}  Kf5 {[%clk 0:01:15]} 74. Rc5+ {[%clk 0:00:21]}  Kf6 {[%clk 0:01:16]} 75. Kg4 {[%clk 0:00:21]}  Ra1 {[%clk 0:01:16]} 76. Kf4 {[%clk 0:00:20]}  Ra4+ {[%clk 0:00:59]} 77. Kg3 {[%clk 0:00:20]}  Ra1 {[%clk 0:00:59]} 78. Rc6+ {[%clk 0:00:20]}  Kf5 {[%clk 0:00:59]} 79. Rc5+ {[%clk 0:00:20]}  Kf6 {[%clk 0:00:59]} 80. Rc6+ {[%clk 0:00:21]}  Ke5 {[%clk 0:01:00]} 81. Rc5+ {[%clk 0:00:21]}  Kd6 {[%clk 0:01:00]} 82. Rg5 {[%clk 0:00:21]}  Ke6 {[%clk 0:01:00]} 83. Rg4 {[%clk 0:00:21]}  Rg1+ {[%clk 0:00:58]} 84. Kf4 {[%clk 0:00:21]}  Ra1 {[%clk 0:00:59]} 85. Kg5 {[%clk 0:00:21]}  Ra5+ {[%clk 0:00:58]} 86. Kg6 {[%clk 0:00:21]}  Rf5 {[%clk 0:00:57]} 87. f4 {[%clk 0:00:21]}  Rf8 {[%clk 0:00:53]} 88. Kh5 {[%clk 0:00:21]}  Kf5 {[%clk 0:00:51]} 89. Rg5+ {[%clk 0:00:21]}  Kxf4 {[%clk 0:00:51]} 90. Rg7 {[%clk 0:00:21]}  Kf5 {[%clk 0:00:49]} 91. Kh4 {[%clk 0:00:21]}  Ra8 {[%clk 0:00:46]} 92. Rg5+ {[%clk 0:00:20]}  Kf6 {[%clk 0:00:46]} 93. Rg4 {[%clk 0:00:21]}  Ra1 {[%clk 0:00:46]} 94. Kg3 {[%clk 0:00:21]}  Kf5 {[%clk 0:00:46]} 95. Rf4+ {[%clk 0:00:21]}  Ke5 {[%clk 0:00:46]} 96. Rf3 {[%clk 0:00:21]}  Rg1+ {[%clk 0:00:45]} 97. Kf2 {[%clk 0:00:21]}  Rg7 {[%clk 0:00:45]} 98. Re3+ {[%clk 0:00:21]}  Kf4 {[%clk 0:00:44]} 99. Rf3+ {[%clk 0:00:21]}  Ke4 {[%clk 0:00:45]} 100. Re3+ {[%clk 0:00:22]}  Kd4 {[%clk 0:00:45]} 101. Rf3 {[%clk 0:00:22]}  Ra7 {[%clk 0:00:46]} 102. Kg3 {[%clk 0:00:22]}  Ke4 {[%clk 0:00:46]} 103. Rf4+ {[%clk 0:00:22]}  Ke5 {[%clk 0:00:46]} 104. Rf3 {[%clk 0:00:22]}  Ra1 {[%clk 0:00:47]} 105. Re3+ {[%clk 0:00:21]}  Kf5 {[%clk 0:00:47]} 106. Rf3+ {[%clk 0:00:22]}  Kg5 {[%clk 0:00:47]} 107. Re3 {[%clk 0:00:22]}  Ra5 {[%clk 0:00:46]} 108. Kf3 {[%clk 0:00:21]}  Rf5+ {[%clk 0:00:44]} 109. Kg3 {[%clk 0:00:21]}  Ra5 {[%clk 0:00:43]} 110. Rf3 {[%clk 0:00:21]}  Ra4 {[%clk 0:00:42]} 111. Re3 {[%clk 0:00:20]}  Rg4+ {[%clk 0:00:43]} 112. Kf3 {[%clk 0:00:20]}  Rf4+ {[%clk 0:00:41]} 113. Ke2 {[%clk 0:00:20]}  Ra4 {[%clk 0:00:41]} 114. Rf3 {[%clk 0:00:20]}  Kg4 {[%clk 0:00:41]} 115. Re3 {[%clk 0:00:21]}  Ra8 {[%clk 0:00:41]} 116. Kf2 {[%clk 0:00:21]}  Ra2+ {[%clk 0:00:39]} 117. Re2 {[%clk 0:00:21]}  Ra4 {[%clk 0:00:39]} 118. Re3 {[%clk 0:00:21]}  Kh4 {[%clk 0:00:38]} 119. Rf3 {[%clk 0:00:21]}  Kh5 {[%clk 0:00:37]} 120. Rh3+ {[%clk 0:00:21]}  Kg4 {[%clk 0:00:37]} 121. Rg3+ {[%clk 0:00:21]}  Kh4 {[%clk 0:00:37]} 122. Rf3 {[%clk 0:00:22]}  Ra2+ {[%clk 0:00:38]} 123. Ke3 {[%clk 0:00:22]}  Kg4 {[%clk 0:00:38]} 124. Rf4+ {[%clk 0:00:21]}  Kg5 {[%clk 0:00:39]} 125. Rf2 {[%clk 0:00:22]}  Ra3+ {[%clk 0:00:30]} 126. Ke4 {[%clk 0:00:22]}  Ra4+ {[%clk 0:00:30]} 127. Ke5 {[%clk 0:00:22]}  Kg4 {[%clk 0:00:30]} 128. Rg2+ {[%clk 0:00:22]}  Kf3 {[%clk 0:00:31]} 129. Rg6 {[%clk 0:00:21]}  Ra5+ {[%clk 0:00:30]} 130. Kf6 {[%clk 0:00:22]}  Kf4 {[%clk 0:00:30]} 131. Rg1 {[%clk 0:00:21]}  Ra6+ {[%clk 0:00:31]} 132. Kg7 {[%clk 0:00:21]}  Kf5 {[%clk 0:00:30]} 133. Rf1+ {[%clk 0:00:21]}  Kg5 {[%clk 0:00:29]} 134. Rg1+ {[%clk 0:00:21]}  Kf4 {[%clk 0:00:28]} 135. Rf1+ {[%clk 0:00:21]}  Ke5 {[%clk 0:00:29]} 136. Re1+ {[%clk 0:00:21]}  Kd4 {[%clk 0:00:29]} 137. Rd1+ {[%clk 0:00:22]}  Ke3 {[%clk 0:00:30]} 138. Re1+ {[%clk 0:00:22]}  Kf2 {[%clk 0:00:30]} 139. Rc1 {[%clk 0:00:21]}  Ra7+ {[%clk 0:00:30]} 1/2-1/2


[Site "https://www.chess.com"]